Cogmind - Beta 10.1 --- EXPLORER MODE // 2021.10.31 @ 23:49:13 Player: Ilyas Result: Destroyed by L-41 Fighter with Axe Performance ------------- Evolutions (1) 500 Regions Visited (5) 1000 Robots Destroyed (28) 140 Value Destroyed (637) 637 Prototype IDs (3) 60 Alien Tech Used (0) 0 Bonus (776) 776 TOTAL SCORE: 3113 Bonus ------- Follower Combat Kills 176 Met Imprinter 300 Was Imprinted 300 Cogmind --------- Core Integrity 0/400 Matter 300/300 Energy 100/100 System Corruption 2% Temperature Cool (0) Movement Core (50) Location -6/Proximity Caves Parts ------- > --- POWER (2) -------- (None) > --- PROPULSION (2) --- (None) > --- UTILITY (4) ------ (None) > --- WEAPON (2) ------- CR-A16's Pointy Stick > --- INVENTORY (4) ---- Hover Unit Compact Battery (300) Visual Processing Unit Peak State ------------ > --- POWER ------------ Ion Engine Light Ion Engine > --- PROPULSION ------- Hover Unit Gravmag System > --- UTILITY ---------- Small Storage Unit Signal Interpreter Bomb Drone Bay > --- WEAPON ----------- Enhanced Flamer Enhanced Flamer > --- INVENTORY -------- Hover Unit Cooling System Visual Processing Unit ECM Suite CR-A16's Pointy Stick [Rating: 30] Favorites ----------- Power Light Ion Engine Engine Light Ion Engine Propulsion Hover Unit Leg Aluminum Leg Hover Unit Hover Unit Flight Unit Flight Unit Utility Signal Interpreter Device Bomb Drone Bay Storage Small Storage Unit Processor Signal Interpreter Protection Propulsion Shielding Weapon Enhanced Flamer Energy Gun Small Laser Energy Cannon Light EM Pulse Cannon Ballistic Gun Heavy Assault Rifle Launcher Rocket Launcher Special Weapon Enhanced Flamer Piercing Weapon CR-A16's Pointy Stick Build | -11 -10 -9 -9 -7 -6 ------- Run | Scr Mat Mat Min Zio Pro Slots Evolved 3 | . 1 2 . . . Power 1 | . . 1 . . . Propulsion . | . . . . . . Utility 2 | . 1 1 . . . Weapon . | . . . . . . Parts Attached 42 | 7 . 17 8 2 8 Power 9 | 1 . 6 1 . 1 Engine 9 | 1 . 6 1 . 1 Core . | . . . . . . Reactor . | . . . . . . Propulsion 9 | 2 . 4 2 . 1 Treads . | . . . . . . Leg 3 | 2 . 1 . . . Wheel . | . . . . . . Hover 4 | . . 2 1 . 1 Flight 2 | . . 1 1 . . Utility 14 | 2 . 4 3 . 5 Device 8 | . . 2 1 . 5 Storage 2 | 1 . . 1 . . Processor 2 | 1 . 1 . . . Hackware . | . . . . . . Protection 2 | . . 1 1 . . Artifact . | . . . . . . Weapon 10 | 2 . 3 2 2 1 Energy Gun 2 | 2 . . . . . Energy Cannon 1 | . . 1 . . . Ballistic Gun 3 | . . 1 2 . . Ballistic Cannon . | . . . . . . Launcher 1 | . . 1 . . . Special Weapon 2 | . . . . 2 . Impact Weapon . | . . . . . . Slashing Weapon . | . . . . . . Piercing Weapon 1 | . . . . . 1 Special Melee Weapon . | . . . . . . Unidentified Prototypes 1 | . . . 1 . . Parts Lost 17 | . . 5 2 . 10 Power 4 | . . 1 1 . 2 Propulsion 3 | . . 1 . . 2 Utility 5 | . . 1 . . 4 Weapon 5 | . . 2 1 . 2 Highest Loss Streak 9 | . . 5 2 . 9 Average Slot Usage (%) 88 | . 87 82 89 90 91 Engine 18 | . 12 16 19 20 19 Hover 14 | . . 9 10 20 19 Device 12 | . . 12 19 10 11 Storage 8 | . 12 10 3 10 10 Processor 11 | . 12 15 10 10 9 Protection 1 | . . . 6 . . Energy Gun 2 | . 25 5 . . . Energy Cannon 1 | . . 5 . . . Ballistic Gun 5 | . . 1 17 7 . Launcher 1 | . . 4 2 . . Special Weapon 8 | . . . . 12 19 Naked Turns . | . . . . . . Heaviest Build 26 | 10 10 24 26 26 26 Greatest Support 20 | 20 20 10 12 12 17 Greatest Overweight (x) 6 | . . 6 3 2 1 Average Overweight (x) 1 | . . 2 2 1 1 Largest Inventory Capacity 6 | 6 6 6 6 6 6 Average Capacity 5 | 5 6 6 4 6 5 Most Carried 6 | 2 4 6 5 6 5 Average Carried 3 | . 1 3 2 4 4 Final Capacity 6 | 6 6 6 6 6 4 Final Carried 4 | . 4 2 4 4 3 Class Distribution -------------------- 92% | Hacker-Mutant 7% | Scavenger-Mutant Dominant Class ---------------- Hacker-Mutant | -10/Materials Hacker-Mutant | -9/Materials Hacker-Mutant | -9/Mines Hacker-Mutant | -7/Zion Hacker-Mutant | -6/Proximity Caves Resources | -11 -10 -9 -9 -7 -6 ----------- Run | Scr Mat Mat Min Zio Pro Matter Collected 882 | 233 12 152 329 42 114 Remotely . | . . . . . . Salvage Created 556 | 66 12 230 129 . 119 Parts 46 | 2 4 29 10 . 1 Haulers Intercepted 1 | . . 1 . . . Recyclers Shooed . | . . . . . . Parts Field Recycled . | . . . . . . Retrieved Matter . | . . . . . . Parts Self-Destructed . | . . . . . . Prevented . | . . . . . . Kills | -11 -10 -9 -9 -7 -6 ------- Run | Scr Mat Mat Min Zio Pro Combat Hostiles Destroyed 19 | . . 10 5 . 4 Guns 6 | . . 1 5 . . Cannons 4 | . . 2 . . 2 AOE 7 | . . 7 . . . Classes Destroyed 11 | 1 1 5 2 . 2 Worker 1 | . . 1 . . . Builder 1 | . . 1 . . . Hauler 1 | . . 1 . . . Recycler 1 | 1 . . . . . Watcher 5 | . 1 4 . . . Swarmer 10 | . . 7 3 . . Grunt 1 | . . . 1 . . Brawler 2 | . . . 1 . 1 Duelist 2 | . . . . . 2 Sentry 3 | . . 3 . . . Programmer 1 | . . . . . 1 Best Kill Streak 13 | 1 1 13 3 . 3 Combat Bots Only 4 | . . 4 3 . 3 Max Kills in Single Turn 5 | 1 1 5 1 . 1 Gunslinging . | . . . . . . Exploded 3 | . . 3 . . . Melee . | . . . . . . Uniques/NPCs Destroyed . | . . . . . . Combat | -11 -10 -9 -9 -7 -6 -------- Run | Scr Mat Mat Min Zio Pro Damage Taken 1588 | . 146 544 166 . 732 Core 453 | . 43 135 25 . 250 Absorbed by Shields . | . . . . . . Core Remaining (%) 91 | 100 82 . . . . Volleys Fired 72 | 4 8 35 13 . 12 Largest 2 | 2 2 2 2 . 2 Hottest 160 | 90 90 96 46 . 160 Shots Fired 114 | 8 16 49 20 . 21 Gun 58 | 8 16 15 19 . . Cannon 15 | . . 15 . . . Launcher 20 | . . 19 1 . . Special 21 | . . . . . 21 Kinetic 20 | . . 1 19 . . Thermal 59 | 8 16 14 . . 21 Explosive 20 | . . 19 1 . . Electromagnetic 15 | . . 15 . . . Robot Hit Streak 20 | 5 8 18 17 . 20 Robot Miss Streak 1 | . 1 1 1 . 1 Penetration Max . | . . . . . . Secondary Targets . | . . . . . . Shots Hit Robots 96 | 5 11 41 18 . 21 Core Hits 43 | 2 2 23 7 . 9 Critical Hits 2 | . . . 1 . 1 Critical Kills . | . . . . . . Critical Parts Destroyed 2 | . . . 1 . 1 Melee Attacks 5 | . . . . . 5 Impact . | . . . . . . Slashing . | . . . . . . Piercing 5 | . . . . . 5 Sneak Attacks . | . . . . . . Combat Hostiles . | . . . . . . Follow-up Attacks . | . . . . . . Damage Inflicted 1819 | 59 122 1080 280 . 278 Guns 564 | 59 122 103 280 . . Cannons 131 | . . 131 . . . Explosions 846 | . . 846 . . . Melee 100 | . . . . . 100 Ramming . | . . . . . . Kinetic 296 | . . 16 280 . . Thermal 446 | 59 122 87 . . 178 Explosive 846 | . . 846 . . . Electromagnetic 131 | . . 131 . . . Impact . | . . . . . . Slashing . | . . . . . . Piercing 100 | . . . . . 100 Highest Corruption 2 | . . . . . 2 Average Corruption 1 | . . . . . 1 Corruption Purged . | . . . . . . Effects 2 | . . . . . 2 Message Errors 1 | . . . . . 1 Targeting Errors 1 | . . . . . 1 Overload Shots . | . . . . . . Overflow Damage 19 | . . 19 . . . Projectiles . | . . . . . . Explosions 19 | . . 19 . . . Melee . | . . . . . . Knockbacks . | . . . . . . Impact . | . . . . . . Kinetic . | . . . . . . Secondary . | . . . . . . Self-Inflicted Damage 55 | . . 55 . . . Shots 3 | . . 3 . . . Rammed . | . . . . . . Targets Rammed . | . . . . . . Kicked . | . . . . . . Crushed . | . . . . . . Highest Temperature 312 | 90 312 312 . . 192 Average Temperature 96 | 40 156 117 . . 45 Received Heat Transfer 465 | . 135 117 42 . 171 Effects 2 | . 1 1 . . . Energy Bleed 1 | . 1 . . . . Interference 1 | . . 1 . . . Siege Activations . | . . . . . . Robots Corrupted . | . . . . . . Combat Hostiles . | . . . . . . Parts Fried . | . . . . . . Impact Corruptions . | . . . . . . Robots Melted 2 | . . . . . 2 Combat Hostiles 2 | . . . . . 2 Parts Melted 7 | 1 . 2 . . 4 Heat Transferred 1895 | 161 334 200 . . 1200 Parts Sabotaged . | . . . . . . Parts Stolen . | . . . . . . Parts Stripped . | . . . . . . Power Chain Reactions . | . . . . . . Missiles Intercepted . | . . . . . . Alert | -11 -10 -9 -9 -7 -6 ------- Run | Scr Mat Mat Min Zio Pro Peak Influence 210 | 5 24 210 60 . . Initial 7 | . 2 7 5 . . Average 30 | 3 12 45 17 . . Maximum Alert Level 1 | . . 1 . . . Low Security (%) 94 | 100 100 88 100 . . Level 1 5 | . . 11 . . . Level 2 . | . . . . . . Level 3 . | . . . . . . Level 4 . | . . . . . . Level 5 . | . . . . . . High Security . | . . . . . . Max Security . | . . . . . . Squads Dispatched 1 | . . . . . 1 Investigation . | . . . . . . Extermination . | . . . . . . Reinforcement . | . . . . . . Assault 1 | . . . . . 1 Garrison . | . . . . . . Intercept . | . . . . . . Construction Impeded . | . . . . . . Haulers Reinforced . | . . . . . . Stealth | -11 -10 -9 -9 -7 -6 --------- Run | Scr Mat Mat Min Zio Pro Distress Signals 2 | . 1 1 . . . Communications Jammed . | . . . . . . Distress Signals . | . . . . . . Times Spotted 51 | . 6 18 6 . 21 Peak Tracking Total 8 | . 5 6 3 . 8 Tactical Retreats 6 | . 1 2 1 . 2 Traps | -11 -10 -9 -9 -7 -6 ------- Run | Scr Mat Mat Min Zio Pro Traps Triggered . | . . . . . . Indirectly . | . . . . . . Trap Hack Attempts . | . . . . . . Triggered . | . . . . . . Disarmed . | . . . . . . Reprogrammed . | . . . . . . Reused . | . . . . . . Traps Extracted . | . . . . . . Installed . | . . . . . . Triggered 1 | . . . . . 1 Machines | -11 -10 -9 -9 -7 -6 ---------- Run | Scr Mat Mat Min Zio Pro Machines Disabled 3 | . . 3 . . . Max in Single Turn 1 | . . 1 . . . Machines Sabotaged . | . . . . . . Garrisons Compromised . | . . . . . . Overloaded Fab Kills . | . . . . . . Fab Network Shutdowns . | . . . . . . Hacking | -11 -10 -9 -9 -7 -6 --------- Run | Scr Mat Mat Min Zio Pro Machines Accessed 3 | . . 2 1 . . Terminals 2 | . . 2 . . . Fabricators . | . . . . . . Repair Stations . | . . . . . . Recycling Units . | . . . . . . Scanalyzers . | . . . . . . Garrison Access . | . . . . . . Total Hacks 7 | . . 6 1 . . Successful 6 | . . 5 1 . . Failed 1 | . . 1 . . . Catastrophic 1 | . . 1 . . . Database Lockouts . | . . . . . . Manual . | . . . . . . Terminals 6 | . . 6 . . . Fabricators . | . . . . . . Repair Stations . | . . . . . . Recycling Units . | . . . . . . Scanalyzers . | . . . . . . Garrison Access . | . . . . . . Terminal Hacks 6 | . . 5 1 . . Record 1 | . . 1 . . . Prototype ID Bank 1 | . . 1 . . . Open Door 1 | . . . 1 . . Branch Access Points 1 | . . 1 . . . Security Status 1 | . . 1 . . . Hauler Manifests 1 | . . 1 . . . Fabricator Hacks . | . . . . . . Repair Station Hacks . | . . . . . . Recycling Unit Hacks . | . . . . . . Scanalyzer . | . . . . . . Garrison Access Hacks . | . . . . . . Unauthorized Hacks . | . . . . . . Terminals . | . . . . . . Fabricators . | . . . . . . Repair Stations . | . . . . . . Recycling Units . | . . . . . . Scanalyzers . | . . . . . . Garrison Access . | . . . . . . Data Cores Recovered . | . . . . . . Used . | . . . . . . Hacking Detections 2 | . . 2 . . . Full Trace Events . | . . . . . . Feedback Events . | . . . . . . Feedback Blocked . | . . . . . . Robot Schematics Acquired . | . . . . . . Robots Built . | . . . . . . Matter . | . . . . . . Time . | . . . . . . Total Robot Build Rating . | . . . . . . Part Schematics Acquired . | . . . . . . Parts Built . | . . . . . . Matter . | . . . . . . Time . | . . . . . . Total Part Build Rating . | . . . . . . Parts Repaired . | . . . . . . Time . | . . . . . . Parts Recycled . | . . . . . . Recycled Matter . | . . . . . . Retrieved Matter . | . . . . . . Retrieved Components . | . . . . . . Parts Scanalyzed . | . . . . . . Part Schematics Acquired . | . . . . . . Parts Damaged . | . . . . . . Bothacking | -11 -10 -9 -9 -7 -6 ------------ Run | Scr Mat Mat Min Zio Pro Used RIF Installer . | . . . . . . Robots Hacked . | . . . . . . Non-combat . | . . . . . . Combat . | . . . . . . Robot Hacks Applied . | . . . . . . Relay Couplers Released . | . . . . . . Robots Rewired . | . . . . . . Allies Hacked . | . . . . . . Hacks Repelled . | . . . . . . Allies | -11 -10 -9 -9 -7 -6 -------- Run | Scr Mat Mat Min Zio Pro Total Allies 4 | . . . . 4 . Largest Group 4 | . . . . 4 4 Highest-Rated Group 149 | . . . . 149 149 Highest-Rated Ally 39 | . . . . 39 39 Total Orders . | . . . . . . Ally Attacks 36 | . . . . . 36 Total Damage 570 | . . . . . 570 Kills 6 | . . . . . 6 Allies Corrupted . | . . . . . . Allies Melted . | . . . . . . Intel | -11 -10 -9 -9 -7 -6 ------- Run | Scr Mat Mat Min Zio Pro Robot Analysis Total . | . . . . . . Derelict Logs Recovered . | . . . . . . Drone Launches 17 | . . . . . 17 Drone Recoveries 1 | . . . . . 1 Exploration | -11 -10 -9 -9 -7 -6 ------------- Run | Scr Mat Mat Min Zio Pro Turns Passed 4434 | 112 119 1077 846 1194 1086 Spaces Moved 2549 | 73 69 449 416 806 736 Core 12 | 11 . 1 . . . Treads . | . . . . . . Legs 152 | 62 69 21 . . . Wheels . | . . . . . . Hover 2385 | . . 427 416 806 736 Flight . | . . . . . . Fastest Speed 50 | 50 120 120 116 116 116 Average Speed 149 | 109 120 200 190 135 116 Slowest Speed 350 | 120 120 350 240 176 116 Overloaded Moves . | . . . . . . Propulsion Burnouts . | . . . . . . Robots Hopped . | . . . . . . Cave-ins Triggered . | . . . . . . Exploration Rate (%) 52 | 4 16 45 84 80 84 Regions Visited 5 Branch Regions 3 Pre-discovered Areas . | . . . . . . Known Exits Taken 5 | 1 1 1 1 1 . Unknown Exits Taken . | . . . . . . Scrap Searched 3 | . . . . 2 1 Spaces Dug . | . . . . . . Terrain Destroyed 80 | . . 75 5 . . Melee . | . . . . . . Projectile . | . . . . . . AOE 80 | . . 75 5 . . Terrain Rammed . | . . . . . . Walls Destroyed . | . . . . . . Machines Disabled . | . . . . . . Actions | -11 -10 -9 -9 -7 -6 --------- Run | Scr Mat Mat Min Zio Pro Total 3051 | 97 89 579 451 913 922 Wait 325 | 7 9 56 5 96 152 Move 2544 | 72 68 448 415 805 736 Hop . | . . . . . . Pick Up 38 | 7 4 13 5 5 4 Fast Attach 1 | . . . 1 . . Attach 32 | 7 . 13 5 1 6 Detach 7 | . . 2 3 . 2 Swap 9 | . . 4 2 1 2 Drop 18 | . . 8 2 5 3 Fire 72 | 4 8 35 13 . 12 Melee 5 | . . . . . 5 Ram . | . . . . . . Kick . | . . . . . . Crush . | . . . . . . Escape Stasis . | . . . . . . Rewire . | . . . . . . Trap . | . . . . . . Miscellaneous . | . . . . . . Route ------- -11/Scrapyard -10/Materials -9/Materials (discovered 2 exits: *Min x2) -9/Mines (discovered 3 exits: *Mat / *Exi / *Zio) -7/Zion -6/Proximity Caves History --------- Turn | Location | Event 21 | -11/Scrapyard | Identified exit to Materials 21 | -11/Scrapyard | Discovered exit to Materials (range 16) 113 | -11/Scrapyard | Entered Materials 113 | -10/Materials | Evolved 1 slot: Utility x1 209 | -10/Materials | Identified exit to Materials 209 | -10/Materials | Discovered exit to Materials (range 16) 232 | -10/Materials | Entered another Materials area 232 | -9/Materials | Evolved 2 slots: Power x1, Utility x1 310 | -9/Materials | Build established: Hacker-Mutant 898 | -9/Materials | Lost 5 parts (1p1n1u2w) 1174 | -9/Materials | Identified exit to Mines 1174 | -9/Materials | Discovered exit to Mines (range 7) 1238 | -9/Materials | Build established: Scavenger-Mutant 1309 | -9/Materials | Entered Mines 1363 | -9/Mines | Met a Derelict bent on vengeance 1386 | -9/Mines | Identified exit to Exiles 1386 | -9/Mines | Discovered exit to Exiles (range 8) 1496 | -9/Mines | Identified exit to Materials 1496 | -9/Mines | Discovered exit to Materials (range 11) 1574 | -9/Mines | Build established: Hacker-Mutant 1976 | -9/Mines | A Derelict revealed a hidden shortcut to a safe place 2099 | -9/Mines | Found the Drone Emporium 2109 | -9/Mines | Found Prototype Device 2111 | -9/Mines | Identified Bomb Drone Bay 2153 | -9/Mines | Identified exit to Zion 2155 | -9/Mines | Entered Zion 2438 | -7/Zion | Found CR-A16's Pointy Stick 2992 | -7/Zion | Imprinted 2994 | -7/Zion | Declared Zion's savior 3314 | -7/Zion | Identified exit to Proximity Caves 3314 | -7/Zion | Discovered exit to Proximity Caves (range 13) 3349 | -7/Zion | Entered Proximity Caves 3349 | -6/Proximity Caves | Accompanied by 4 allies 3600 | -6/Proximity Caves | Spotted B-75 Beast 4335 | -6/Proximity Caves | Attracted the attention of an 0b10 outpost 4424 | -6/Proximity Caves | Core integrity fell below 50% 4433 | -6/Proximity Caves | Core integrity fell below 20% 4435 | -6/Proximity Caves | Destroyed by L-41 Fighter with Axe Last Messages --------------- 04411_ Enh. Flamer destroyed. 04411_ L-41 Fighter shuts down. 04413_ MG-K3L(M) destroyed. 04417_ Hover Unit destroyed. 04419_ Cooling System destroyed. 04420_ Enh. Flamer destroyed. 04421_ Penetrated by Slug. 04425_ Gravmag System destroyed. 04425_ Slug penetrates Wall. 04426_ Ion Engine destroyed. 04426_ Imp. Deuterium Engine destroyed. 04427_ L-41 Fighter suffers critical hit. 04427_ Destroyed Carbon-fiber Leg. 04428_ Penetrated by Slug. 04429_ Signal Interpreter destroyed. 04429_ System corrupted by crushing effect (+1). 04433_ System corrupted: CR-A16's Pointy Stick targeting data glitched. 04433_ L-41 Fighter reactivates. 04434_ Sml. Storage Unit destroyed. 04434_ Penetrated by Slug. Map ----- +----------------------------------------------------+ | ?????????????????????????????????????????????????? | | ?????????????????????????????????????????????????? | | ?????????????????????????????????????????????????? | | ?????????###?????###??###????????????????????????? | | ########## ####### #### #????????????????????????? | | #!!|%%%%= ## #####????????????????????? | | # ###/#### #????????????????????? | | %# % ??#% #????????????????????? | | # ??# ## ##???????????????????? | | #" ?#% ### ##??????????????????? | | #" ##?# ### #?# ## #??????????????????? | | # #" /??# #?###?######## #??????????????????? | | # #" #?? #????????????# ##??????????????????? | | # #####? #????????????# #???????????????????? | | # ???? #????????????## ##??????????????????? | | ?##???######?????????????## #??????????????????? | | ????####???????????####???## #??????????????????? | | ???## %#####????### ##??##Y #??????????????????? | | ???#% ## #????# #?##!%*#??????????????????? | | ####% # #????# ### = #??????????????????? | | %# # #????# ## #??????????????????? | | * %% ###### # ##??????????????????? | | ## # # ## ##???????????????????? | | ?# ### #????????????????????? | | ?## # ####### ##?#b ##???????????????????? | | ??## %!# # #??? #??#@li ##??????????????????? | | ???# %= # #### #??##lgg #??????????????????? | | ???# #??##% #??????????????????? | | #??##### #### #### #??????????????????? | | #??????#% #?# #??????????????????? | | #??????# ! ### #??????????????????? | | #???### # [%= # ##### ##??????????????????? | | #???# [% # #??## #???????????????????? | | #???## !% ###### #??????????????????? | | ###?# ## ## ### ### #??????????????????? | | % #?# ### ### ### #??????????????????? | | # #??###?## ######??????????????????? | | #######????????# # #?##??????????????????? | | #?????????###??## ## #??????????????????? | | #?###????## ##??# ##?????????????????? | | ?## #??## ##?# #?????????????????? | | ?# ### #?# # #########?????????? | | ?# #?# ## #####?????? | | ?## ###### # ## # ##????? | | ??## #??## # #????? | | ???####### #??# # # ##???? | | ?????????## #### ### ####? | | ??????????## ## # # ## = #? | | ???????????# !%! ### # # #?## ## #? | | ???????????# ## %#####??### [ # #? | +----------------------------------------------------+ Best States ------------- Heat Dissipation 50 Energy Generation 21 Energy Capacity 440 Matter Stores 300 Matter Capacity 300 Sight Range 16 Terrain Scan Density 10 ECM Strength 1 Resistance: KI 35 Resistance: TH 35 Resistance: EX 35 Resistance: EM 35 Resistance: I 35 Resistance: S 35 Resistance: P 35 Propulsion Shielding 33 Evasion (%) 40 Targeting Accuracy 5 Offensive Hacking 20 Item Schematics ----------------- None Robot Schematics ------------------ None Fabricated ------------ Nothing Alien Tech Used ----------------- None Achievements -------------- It's Just You Robot Respite Shopping List The One Challenges ------------ None Game ------ Seed IntegratedGlidesysFlakker Manual? 0 Play Time 00:59:42 Cumulative 0.0 hours Start 2021.10.31 @ 22:37:30 End 2021.10.31 @ 23:49:13 Sessions 1 Manual Loads 0 Difficulty Explorer Special Mode None Game No. 4 Rogue 0 Adventurer 0 Explorer 4 Win Type - Total 0 Types 0/0/0/0/0/0/0/0/0 Lore% 4 Gallery% 9 Achievement% 7 Wizard Run 0 Options --------- ASCII 1 Keyboard 0 Movement Mouse Keybinds 0 Fullscreen 1 Font 12/Smallcaps Map View 76x56 Tactical HUD 1 Map Filters NONE Filters NONE Steam X RUN: e715ffde-2d26-4d95-adfd-9260fbe93e64